[Event "German Rapid Championship 2022"]
[Site "Goettingen"]
[Date "2022.09.24"]
[Round "1.9"]
[White "Knuedel, Torben"]
[Black "Langheinrich, Ferenc"]
[Result "1-0"]
[ECO "B12"]
[WhiteElo "2221"]
[BlackElo "2366"]
[Annotator "TA"]
[PlyCount "59"]
[EventDate "2022.09.24"]
[EventType "swiss"]
[EventCountry "GER"]
[SourceTitle "playchess.com"]
[Source "ChessBase"]
[SourceQuality "1"]
[TimeControl "900+10"]

{[%evp 15,59,33,37,42,50,41,69,22,27,29,37,41,42,45,135,70,215,189,189,199,205,213,210,194,178,186,187,175,184,0,159,132,490,480,540,539,548,533,731,726,29988,1626,1411,1515,1579,1439]} 1. e4 {[%emt 0:00:02]} c6 {[%emt 0:00:03]} 2. d4 {[%emt 0:00:02]} d5 {[%emt 0:00:01]} 3. f3 {[%emt 0:00:01]} e6 {[%emt 0:00:11]} 4. Be3 {[%emt 0:00:01]} Nf6 {[%emt 0:00:02]} 5. e5 {[%emt 0:00:02]} Nfd7 {[%emt 0:00:02]} 6. f4 {[%emt 0:00:01]} c5 {[%emt 0:00:01]} 7. c3 {[%emt 0:00:01]} Qb6 {[%emt 0:00:27]} 8. Qd2 {[%emt 0:00:03]} Nc6 {[%emt 0:00:08]} 9. Nf3 {[%emt 0:00:02] B12: Caro-Kann: Advance Variation.} a5 {[%emt 0:00:06] [#]} 10. Bd3 $146 {[%emt 0:01:34]} ({Predecessor:} 10. Be2 Be7 11. O-O f5 12. Bf2 O-O 13. c4 dxc4 14. Na3 Nxd4 15. Nxd4 c3 16. Qxc3 cxd4 17. Bxd4 {1-0 (47) Halwick,F (2430)-Neven,K (2375) IECG email 1997}) 10... g6 {[%emt 0:00:14]} 11. h4 {[%emt 0:00:19]} (11. a4 $14 {might be stronger.}) 11... h5 {[%emt 0:00:03]} 12. Ng5 {[%emt 0:00:30]} Be7 {[%emt 0:00:28]} 13. O-O {[%emt 0:00:29]} a4 {[%emt 0:00:33]} ({Don't do} 13... cxd4 14. cxd4 Ndb8 15. Nc3 $16) 14. Na3 {[%emt 0:00:40]} Qa5 {[%emt 0:01:48]} (14... c4 $14 15. Be2 Qa6) 15. Qf2 {[%emt 0:00:19] White has more active pieces. The black rooks are badly placed.} (15. Qc2 $16) 15... Rb8 {[%emt 0:00:35] [#]} ({Black should try} 15... cxd4 $1 $14 16. cxd4 Nb4) 16. Nxf7 $1 {[%emt 0:01:34][%mdl 512]} Kxf7 {[%emt 0:00:44] [#]} 17. Bxg6+ $1 {[%emt 0:00:07][%mdl 576] Decoy} Kxg6 {[%emt 0:00:22]} 18. f5+ {[%emt 0:00:25]} Kf7 {[%emt 0:00:01][%cal Od7e5] Hoping for ...Ndxe5!} (18... Kh7 $2 19. f6 Bxf6 20. exf6 $18) 19. fxe6+ {[%emt 0:02:16]} Ke8 {[%emt 0:00:01][%cal Od7e5]} 20. Qf7+ {[%emt 0:02:12]} Kd8 {[%emt 0:00:01] Strongly threatening ...cxd4.} 21. exd7 {[%emt 0:00:36] Really sharp!} Bxd7 {[%emt 0:00:02]} 22. Bg5 $2 {[%emt 0:00:10]} ({Better is} 22. Qxd5 $18 cxd4 23. Nb5 $1) 22... cxd4 $2 {[%emt 0:01:10]} (22... Bxg5 $1 $11 23. hxg5 Re8) 23. e6 $1 $16 {[%emt 0:00:52]} Be8 {[%emt 0:01:09][%mdl 8192]} (23... dxc3 $16 {is more resistant.} 24. exd7 Qc5+ 25. Rf2 cxb2) 24. Qg7 $1 $18 {[%emt 0:00:09][%csl LRd4,LRh8]} Bxg5 {[%emt 0:02:59]} 25. hxg5 {[%emt 0:00:12]} ({Stronger than} 25. Qxh8 Be7 26. Rad1 Kc7 27. cxd4 (27. Qg7 dxc3 28. Qxc3 Qc5+ 29. Kh1 Kb6 $17) 27... Kb6 $15) 25... dxc3 {[%emt 0:00:27]} 26. Qxh8 {[%emt 0:00:30] Rf7 is the strong threat.} Qb6+ {[%emt 0:02:56]} 27. Kh1 {[%emt 0:00:18]} Qxb2 {[%emt 0:00:01] [#]} 28. Qf6+ {[%emt 0:01:40]} (28. Rf7 $142 $1 Ne7 {[#]} 29. Qe5 $1 Qb6 30. Qxb8+ Nc8 31. Rxb7 Qd6 32. e7+ Qxe7 33. Rxe7) 28... Kc8 {[%emt 0:00:37]} 29. Qf8 {[%emt 0:01:15][%cal Of1f7] Threatening mate with Rf7!} Kc7 {[%emt 0:00:27]} 30. Rab1 {[%emt 0:00:19] Weighted Error Value: White=0.26 (precise) /Black=0.98} 1-0

[Event "German Rapid Championship 2022"]
[Site "Goettingen"]
[Date "2022.09.24"]
[Round "1.10"]
[White "Muckle, Julius"]
[Black "Philipp, Mathias"]
[Result "1-0"]
[ECO "A95"]
[WhiteElo "2401"]
[BlackElo "2158"]
[Annotator "TA"]
[PlyCount "71"]
[EventDate "2022.09.24"]
[EventType "swiss"]
[EventCountry "GER"]
[SourceTitle "playchess.com"]
[Source "ChessBase"]
[SourceQuality "1"]
[TimeControl "900+10"]

{[%evp 14,71,39,12,36,18,37,6,41,23,23,3,50,48,85,79,113,60,79,72,116,91,131,80,73,70,111,93,98,98,110,83,114,75,101,72,170,160,158,118,141,147,133,140,113,143,134,131,235,237,235,179,492,482,475,482,435,443,1099,578]} 1. d4 {[%emt 0:00:01]} f5 {[%emt 0:00:02]} 2. c4 {[%emt 0:00:04]} Nf6 {[%emt 0:00:01]} 3. Nc3 {[%emt 0:00:04]} e6 {[%emt 0:00:01]} 4. g3 {[%emt 0:00:03]} d5 {[%emt 0:00:12]} 5. Nf3 {[%emt 0:00:04]} c6 {[%emt 0:00:02]} 6. Bg2 {[%emt 0:00:03]} Be7 {[%emt 0:00:01]} 7. O-O {[%emt 0:00:02]} O-O {[%emt 0:00:01]} 8. Rb1 {[%emt 0:00:22]} a5 {[%emt 0:01:13] A95: Classical Dutch: Classical Stonewall: 7 Nc3 c6.} 9. a3 {[%emt 0:00:26]} Ne4 {[%emt 0:00:50]} 10. Qc2 {[%emt 0:00:05]} Bd7 {[%emt 0:00:45] The position is equal.} 11. b4 {[%emt 0:01:26]} (11. Ne5 {with more complications.} Bf6 12. Be3 Be8 13. cxd5 cxd5 14. Nxe4 dxe4 15. Qb3) 11... axb4 {[%emt 0:00:04]} 12. axb4 {[#]} Nxc3 $146 {[%emt 0:00:18]} (12... Be8 $11) ({Predecessor:} 12... Na6 13. b5 Nb4 14. Qb3 Nxc3 15. Qxc3 Na2 16. Qb3 dxc4 17. Qxc4 cxb5 18. Qb3 Nxc1 19. Rfxc1 {1-0 (77) Dehmel,J (2075)-Uhlarz,J (1743) Dresden 2016}) 13. Qxc3 $14 {[%emt 0:00:03]} b5 {[%emt 0:00:01]} 14. c5 {[%emt 0:00:35]} Be8 {[%emt 0:00:19]} 15. Ne5 {[%emt 0:00:10]} (15. Bf4 $16) 15... Qc7 {[%emt 0:01:06]} 16. h4 {[%emt 0:01:17]} h6 {[%emt 0:00:32]} 17. Bf4 {[%emt 0:01:11][%cal Oe5g6] Hoping for Ng6!} g5 {[%emt 0:00:10] [#]} 18. hxg5 {[%emt 0:00:02]} (18. Bd2 $142 $1) 18... hxg5 $16 {[%emt 0:00:01]} 19. Bd2 {[%emt 0:00:01] White is more active.} Bh5 {[%emt 0:00:24]} 20. Bf3 {[%emt 0:00:41]} g4 {[%emt 0:02:13]} 21. Bg2 $36 {[%emt 0:00:41][%mdl 2048] White has strong initiative.} Nd7 {[%emt 0:00:02]} 22. Bf4 {[%emt 0:00:10][%cal Oe5g4]} Qb7 {[%emt 0:00:35]} 23. Qe3 {[%emt 0:02:40][%cal Oe5g6]} Bf6 {[%emt 0:01:06]} 24. Ra1 {[%emt 0:01:40]} ({Much worse is} 24. Bh6 $6 Rfe8 $11) 24... Kh7 {[%emt 0:00:55] [#]} (24... Nxe5 $16 25. Bxe5 Bxe5 26. Qxe5 Kf7) 25. Nd3 $1 $18 {[%emt 0:00:37] Black must now prevent Rxa8.} Bf7 {[%emt 0:00:20]} 26. Bg5 {[%emt 0:01:53]} Bg7 {[%emt 0:02:23]} 27. f3 {[%emt 0:00:22]} gxf3 {[%emt 0:00:29]} 28. Bxf3 {[%emt 0:00:04]} ({Much weaker is} 28. exf3 $6 Rxa1 29. Rxa1 Ra8 30. Rxa8 Qxa8 $11) 28... Rxa1 {[%emt 0:00:09]} 29. Rxa1 {[%emt 0:00:01]} Ra8 {[%emt 0:00:00]} 30. Rf1 {[%emt 0:00:03]} Nf8 {[%emt 0:01:32]} (30... Rh8 $16 {is a better defense.}) 31. Ne5 {[%emt 0:00:26]} Kg8 {[%emt 0:00:48]} 32. Kg2 {[%emt 0:00:26]} Ng6 $2 {[%emt 0:01:08]} (32... Be8 33. Rh1 Qc7) 33. Nxg6 {[%emt 0:00:36] White is clearly winning.} Bxg6 {[%emt 0:00:03]} 34. Qxe6+ {[%emt 0:00:02]} Bf7 {[%emt 0:00:05]} 35. Qxf5 {[%emt 0:00:03] And now Rh1 would win.} Re8 {[%emt 0:00:47]} (35... Qc8 $142 36. Qxc8+ Rxc8) 36. Bf6 {[%emt 0:00:37] Weighted Error Value: White=0.18 (very precise) /Black=0.35} 1-0

[Event "German Rapid Championship 2022"]
[Site "Goettingen"]
[Date "2022.09.24"]
[Round "1.11"]
[White "Elier, Ali"]
[Black "Langrock, Hannes"]
[Result "0-1"]
[ECO "B21"]
[WhiteElo "2164"]
[BlackElo "2358"]
[Annotator "TA"]
[PlyCount "72"]
[EventDate "2022.09.24"]
[EventType "swiss"]
[EventCountry "GER"]
[SourceTitle "playchess.com"]
[Source "ChessBase"]
[SourceQuality "1"]
[TimeControl "900+10"]

{[%evp 13,72,0,6,6,10,0,0,0,8,7,0,0,0,0,0,0,0,-5,0,-9,-8,-8,-4,-12,0,-7,-13,-194,-179,-294,-298,-686,-408,-373,-382,-536,-504,-661,-689,-685,-685,-624,-616,-547,-485,-541,-484,-543,-579,-585,-583,-543,-531,-615,-615,-554,-490,-12839,-12838,-12843,-546]} 1. e4 {[%emt 0:00:03][%cal Be2e4,Be4e5][%mdl 32]} c5 {[%emt 0:00:02][%cal Bc7c5,Bc5d4][%mdl 32]} 2. d4 {[%emt 0:00:02]} cxd4 {[%emt 0:00:02]} 3. c3 {[%emt 0:00:01]} Nf6 {[%emt 0:00:02]} 4. e5 {[%emt 0:00:02]} Nd5 {[%emt 0:00:02]} 5. Nf3 {[%emt 0:00:01]} d6 {[%emt 0:00:02]} 6. Bc4 {[%emt 0:00:02]} e6 {[%emt 0:00:15]} 7. cxd4 {[%emt 0:00:11]} Be7 {[%emt 0:00:07]} 8. O-O {[%emt 0:00:10] B22: Sicilian: 2 c3.} O-O {[%emt 0:00:05]} 9. Nc3 {[%emt 0:00:15]} dxe5 {[%emt 0:00:28]} 10. Nxe5 {[%emt 0:00:09] The position is equal.} Nc6 {[%emt 0:00:09]} 11. Nxd5 {[%emt 0:03:11]} exd5 {[%emt 0:00:05] [#]} 12. Bd3 $146 {[%emt 0:00:14]} ({Predecessor:} 12. Nxc6 bxc6 13. Bd3 Bd6 14. Be3 a5 15. Qc2 h6 16. Qxc6 Be6 17. Rac1 a4 18. Bb1 {½-½ (79) Feuerstack,A (2344)-Langrock,H (2239) Playchess.com INT 2021}) 12... Nxd4 {[%emt 0:02:35]} 13. Bxh7+ {[%emt 0:01:58]} Kxh7 {[%emt 0:00:02]} 14. Qxd4 {[%emt 0:00:04]} Kg8 {[%emt 0:00:43]} 15. Bf4 {[%emt 0:00:39]} Be6 {[%emt 0:00:27]} 16. Rac1 {[%emt 0:02:06]} Qa5 {[%emt 0:00:25]} 17. Rc3 {[%emt 0:02:49][%cal Of4h6]} Rac8 {[%emt 0:05:21]} 18. Rg3 {[%emt 0:01:22]} Bf6 {[%emt 0:00:20]} 19. Bh6 {[%emt 0:03:16][%cal Oh6g7] [#] aiming for Bxg7!} Qc7 {[%emt 0:01:47]} (19... Qxa2 20. Bxg7 Rc3 21. Bxf6+ Rxg3 22. Qh4 Rg7 23. Qh6) 20. Bxg7 $2 {[%emt 0:01:22] This move loses the game for White.} Bxg7 $19 {[%emt 0:00:04]} 21. Qf4 {[%emt 0:00:23]} (21. h3 $142) 21... f6 {[%emt 0:00:45][%cal Bf7f6,Bf6e5][%mdl 32]} 22. Qh6 $2 {[%emt 0:00:01]} (22. Ng6) 22... fxe5 {[%emt 0:01:33]} 23. Qxe6+ {[%emt 0:00:01]} Qf7 {[%emt 0:00:03]} 24. Rxg7+ {[%emt 0:00:26]} (24. Qh6 $142) 24... Kxg7 {[%emt 0:00:07] Black is clearly winning.} 25. Qg4+ {[%emt 0:00:02]} Qg6 {[%emt 0:01:55]} 26. Qd7+ {[%emt 0:00:03]} Kh8 {[%emt 0:00:02]} 27. Qxd5 {[%emt 0:00:19]} Qf6 {[%emt 0:00:09][%cal Of6f2] ( -> ...Qxf2+!)} 28. Qd3 {[%emt 0:00:13]} Rc7 {[%emt 0:00:16]} 29. b4 {[%emt 0:00:09]} Rh7 {[%emt 0:00:07]} 30. g3 {[%emt 0:00:07]} Qh6 {[%emt 0:00:14][%csl Gh7][%cal Rh6h2]} 31. h4 {[%emt 0:00:05]} Qf6 {[%emt 0:00:17][%cal Oh7h4]} 32. Qe4 {[%emt 0:00:05]} Qf5 {[%emt 0:00:16]} 33. Qe3 {[%emt 0:00:01]} Rg8 {[%emt 0:00:12]} 34. Kh2 {[%emt 0:00:07]} Qf6 {[%emt 0:00:12]} 35. Rg1 {[%emt 0:00:23] [#]} (35. Re1 $142 Rh5 36. a3) 35... Rxh4+ $1 {[%emt 0:00:22][%mdl 512]} 36. gxh4 {[%emt 0:00:01]} (36. Kg2 Qc6+) 36... Qxh4+ {[%emt 0:00:02] Weighted Error Value: White=0.67/Black=0.33} 0-1

[Event "German Rapid Championship 2022"]
[Site "Goettingen"]
[Date "2022.09.24"]
[Round "1.12"]
[White "Spiess, Gunter"]
[Black "Arndt, Magnus"]
[Result "0-1"]
[ECO "E10"]
[WhiteElo "2384"]
[BlackElo "2384"]
[Annotator "TA"]
[PlyCount "110"]
[EventDate "2022.09.24"]
[EventType "swiss"]
[EventCountry "GER"]
[SourceTitle "playchess.com"]
[Source "ChessBase"]
[SourceQuality "1"]
[TimeControl "900+10"]

{[%evp 9,110,24,24,18,17,33,29,29,35,36,33,0,0,0,14,0,28,27,36,10,18,0,0,0,85,0,0,-15,93,89,77,30,26,14,19,30,164,128,195,161,180,63,180,34,89,-52,120,-75,-72,-76,-92,-140,-142,-139,-141,-220,-128,-162,-128,-170,-171,-176,-170,-212,-193,-237,-150,-161,-179,-172,-177,-306,-306,-323,-334,-321,-327,-331,-329,-376,-385,-376,-380,-827,-544,-477,-472,-780,-749,-772,-747,-29972,-1172,-29973,-1878,-29961,-712,-29972,-29966,-29995,-29996,-29997,-29998]} 1. d4 {[%emt 0:00:02]} Nf6 {[%emt 0:00:01]} 2. c4 e6 3. Nf3 {[%emt 0:00:20]} a6 {[%emt 0:00:15]} 4. Nc3 {[%emt 0:00:30]} d5 {[%emt 0:00:02]} 5. cxd5 {[%emt 0:00:09]} exd5 {[%emt 0:00:02]} 6. Bg5 {[%emt 0:00:08][%cal Bc1g5,Bg5h4,Bh4g3][%mdl 32] D37: Queen's Gambit Declined: 5 Bf4.} Be6 {[%emt 0:00:03]} 7. e3 {[%emt 0:00:06]} Nbd7 {[%emt 0:00:03]} 8. Bd3 {[%emt 0:00:05] White has an edge.} Bd6 {[%emt 0:00:02]} 9. O-O {[%emt 0:00:31]} c6 $1 {[%emt 0:00:02] The main line 9...c6 scores better than 9...0-0.} 10. Qc2 {[%emt 0:00:16]} Qc7 {[%emt 0:01:13]} 11. Bh4 {[%emt 0:01:18]} Bg4 {[%emt 0:05:44]} 12. Bg3 {[%emt 0:00:02]} (12. Rae1 {seems wilder.} Bxf3 13. gxf3 Bxh2+ 14. Kg2) 12... Bxf3 {[%emt 0:02:47]} 13. gxf3 {[%emt 0:00:02] [#]} Nf8 $146 {[%emt 0:00:49]} ({Predecessor:} 13... O-O 14. Rac1 Rfe8 15. a3 Nf8 16. b4 Ng6 17. a4 Qe7 18. b5 cxb5 19. axb5 a5 {1-0 (36) Rustemov,A (2525)-Jacobson,B (2487) Chess.com INT 2020}) 14. Bf5 {[%emt 0:03:01]} Ne6 {[%emt 0:00:56]} 15. Bxe6 {[%emt 0:00:25]} fxe6 {[%emt 0:00:01]} 16. e4 {[%emt 0:00:29]} Bf4 {[%emt 0:02:00]} (16... Nh5 $11) 17. Ne2 {[%emt 0:03:45]} (17. exd5 $1 $16 {aiming for Rfe1.} cxd5 18. Rfe1) 17... Bxg3 $11 {[%emt 0:01:32]} 18. hxg3 {[%emt 0:00:22]} e5 {[%emt 0:01:23] Inhibits Nf4.} (18... dxe4 $11 {remains equal.} 19. fxe4 O-O-O) 19. exd5 $1 $16 {[%emt 0:01:04]} Nxd5 {[%emt 0:00:24]} 20. Qe4 {[%emt 0:00:05]} (20. Nc3 $16 {Hoping for Nxd5.} O-O-O 21. Qf5+ Kb8 22. dxe5) 20... O-O $11 {[%emt 0:00:13]} 21. dxe5 {[%emt 0:00:02] Black must now prevent Rac1.} Rae8 {[%emt 0:00:23]} 22. f4 {[%emt 0:00:02]} Qf7 {[%emt 0:00:23]} (22... g5 $1 $11 {and Black has nothing to worry.}) 23. Kg2 {[%emt 0:01:43]} g6 {[%emt 0:00:11]} (23... Qg6 $16 {might work better.} 24. Qd4 Qh5) 24. Rac1 {[%emt 0:01:05]} Qe6 {[%emt 0:00:13]} 25. Qf3 {[%emt 0:01:05]} (25. Rfe1 $18) 25... Qf7 {[%emt 0:00:17]} (25... g5 $14) 26. Qb3 {[%emt 0:00:48]} (26. Qg4 $1 $18) 26... Kh8 {[%emt 0:00:08]} (26... g5 $1 $14) 27. Nd4 {[%emt 0:00:43] [#]} (27. Rc4 $16) 27... Qd7 $2 {[%emt 0:00:13] [#]} (27... Nxf4+ $1 $15 28. gxf4 Qxf4) 28. e6 $2 {[%emt 0:00:24] [#]} (28. Rh1 $1 $16 {stays on course.}) 28... Nxf4+ $1 $17 {[%emt 0:00:10][%mdl 64] Discovered Attack} 29. gxf4 {[%emt 0:00:08]} Qxd4 {[%emt 0:00:01]} 30. Qc3 {[%emt 0:00:46]} (30. Qxb7 $142 Qd5+ 31. Kg3) 30... Qxc3 {[%emt 0:00:01]} 31. Rxc3 {[%emt 0:00:01]} Rxe6 {[%emt 0:00:01][%mdl 4096] Endgame KRR-KRR} 32. Rd1 {[%emt 0:00:01]} (32. Re3 $17 Ref6 33. Re7) 32... Rf7 {[%emt 0:00:12]} (32... Rxf4 $19 {And now ...Re2 would win.} 33. Rd7 Re2 34. Rxb7 Rfxf2+ 35. Kg3 Rg2+ 36. Kh3 Rh2+ 37. Kg3 Reg2+ 38. Kf4 Rxb2) 33. Kg3 {[%emt 0:00:14]} Kg7 {[%emt 0:00:02]} 34. Rd8 {[%emt 0:00:02]} Re4 {[%emt 0:00:08]} 35. Rf3 {[%emt 0:00:02]} a5 {[%emt 0:00:27]} 36. Rb8 {[%emt 0:00:04]} a4 {[%emt 0:00:03]} 37. a3 {[%emt 0:00:06]} Re2 {[%emt 0:00:19]} 38. b3 {[%emt 0:00:01]} Re4 {[%emt 0:00:20]} 39. bxa4 {[%emt 0:01:17]} Rxa4 {[%emt 0:00:01]} 40. Rb3 {[%emt 0:00:02]} (40. Re8 $142) 40... Raxf4 $19 {[%emt 0:00:04]} ({But not} 40... b5 $2 41. Rf3 $19) 41. R8xb7 {[%emt 0:00:07]} Rxf2 {[%emt 0:00:10]} 42. R7b6 {[%emt 0:00:06]} R2f6 {[%emt 0:00:04]} 43. Rc3 {[%emt 0:00:01]} Ra7 {[%emt 0:00:04] Against Ra6} 44. Rcb3 {[%emt 0:00:09]} h5 {[%emt 0:00:04][%cal Bh7h5,Bh5h4][%mdl 32]} 45. R6b4 {[%emt 0:00:06]} g5 {[%emt 0:00:06]} 46. Rb6 $2 {[%emt 0:00:02]} (46. Kg2) 46... Kg6 {[%emt 0:00:02]} 47. Rb8 {[%emt 0:00:01]} h4+ {[%emt 0:00:26]} 48. Kg2 {[%emt 0:00:08]} (48. Kh3 $142 Rh7 49. Rg8+ Kh5 50. a4) 48... Ra4 {[%emt 0:00:11]} 49. Rc3 {[%emt 0:00:10]} Kh5 {[%emt 0:00:18]} 50. Rc8 {[%emt 0:00:07]} Kg4 {[%emt 0:00:11]} (50... Raf4 $142 51. Rc1 Rf2+ 52. Kg1 h3 53. Kh1 Rf1+ 54. Rxf1 Rxf1+ 55. Kh2 Kg4 56. Rxc6 Rf2+ 57. Kg1 Ra2 58. Rh6 Kg3 59. Kf1 h2 60. Rh7 g4 61. Rh8 Kf4 62. Rh4 Kf3 63. Ke1 Kg2 64. Rh8 g3 65. Kd1 h1=Q+ 66. Rxh1 Kxh1 67. Kc1 g2 68. Kb1 Rf2 69. Kc1 g1=Q#) 51. Rg8 {[%emt 0:00:13]} Ra5 {[%emt 0:00:24]} (51... Raf4 $142 52. Rc1 h3+ 53. Kg1 Kh4 54. Rh8+ Kg3 55. a4 g4 56. a5 Rf2 57. Rc3+ R6f3 58. Rxf3+ Rxf3 59. a6 Ra3 60. Kf1 Rxa6 61. Rh6 Ra1+ 62. Ke2 h2 63. Ke3 Re1+ 64. Kd2 h1=Q 65. Rxh1 Rxh1 66. Ke3 Kh3 67. Kf2 g3+ 68. Ke2 g2 69. Ke3 Re1+ 70. Kd3 g1=Q 71. Kc3 Re3+ 72. Kd4 Qg5 73. Kc4 Qd5+ 74. Kb4 Qb5#) 52. Rg7 {[%emt 0:00:04]} Rf4 {[%emt 0:00:09]} (52... Raf5 $142 53. Rc4+ Rf4 54. Rc1 h3+ 55. Kg1 Rf2 56. Rc4+ R6f4 57. Rxf4+ Rxf4 58. Rg8 c5 59. Rg7 Rf3 60. Rg8 Rf4 61. Rg6 c4 62. a4 Rf3 63. Kh2 Rf2+ 64. Kh1 h2 65. Re6 Kg3 66. Re3+ Rf3 67. Rxf3+ Kxf3 68. Kxh2 c3 69. Kh3 c2 70. a5 c1=Q 71. Kh2 Qd2+ 72. Kh3 Qg2#) 53. Rg8 {[%emt 0:00:11]} Rb5 {[%emt 0:00:20] Black mates.} 54. Rxc6 {[%emt 0:00:08]} h3+ {[%emt 0:00:03]} 55. Kg1 {[%emt 0:00:13]} Rb1+ {[%emt 0:00:01] Never resign too early!  Weighted Error Value: White=0.83/Black=0.66} 0-1

[Event "German Rapid Championship 2022"]
[Site "Goettingen"]
[Date "2022.09.24"]
[Round "1.13"]
[White "Becker, Thomas"]
[Black "Kopylov, Michael"]
[Result "0-1"]
[ECO "A57"]
[WhiteElo "2124"]
[BlackElo "2371"]
[Annotator "TA"]
[PlyCount "76"]
[EventDate "2022.09.24"]
[EventType "swiss"]
[EventCountry "GER"]
[SourceTitle "playchess.com"]
[Source "ChessBase"]
[SourceQuality "1"]
[TimeControl "900+10"]

{[%evp 10,76,-16,-28,4,12,13,14,17,7,23,18,25,-22,-5,-155,-160,-185,-163,-190,-186,-162,-203,-292,-314,-386,-306,-304,-290,-441,-439,-543,-420,-413,-429,-416,-420,-550,-338,-441,-393,-490,-447,-715,-716,-744,-739,-701,-529,-512,-516,-543,-499,-558,-473,-480,-482,-468,-474,-573,-458,-575,-571,-733,-728,-733,-717,-796,-703]} 1. d4 {[%emt 0:00:03]} Nf6 {[%emt 0:00:02]} 2. c4 {[%emt 0:00:01]} c5 {[%emt 0:00:02]} 3. d5 {[%emt 0:00:02]} b5 {[%emt 0:00:02]} 4. Nc3 {[%emt 0:00:10]} b4 5. Nb1 {[%emt 0:00:05]} e6 {[%emt 0:00:11]} 6. Nf3 {[%emt 0:00:06]} exd5 {[%emt 0:00:27] E10: Blumenfeld Gambit.} 7. cxd5 {[%emt 0:00:02]} Bb7 {[%emt 0:00:02]} 8. Bg5 {[%emt 0:02:42]} h6 {[%emt 0:00:29] The position is equal.} 9. Bxf6 {[%emt 0:00:54]} Qxf6 {[%emt 0:00:02]} 10. e4 {[%emt 0:00:14]} g5 {[%emt 0:02:45]} 11. e5 {[%emt 0:01:29]} (11. Nbd2 $142) 11... Qf4 {[%emt 0:00:19]} 12. Be2 {[%emt 0:01:19] [#] Black keeps a firm grip on the game.} (12. h3 $1 $11) 12... g4 $1 $36 {[%emt 0:01:47][%mdl 2048] [#] Black has strong initiative. Black is more active.} 13. O-O $146 {[%emt 0:04:05][%cal Of1e1]} ({Predecessor:} 13. g3 Qf5 14. Nh4 Qxe5 15. O-O Qxd5 16. Qxd5 Bxd5 17. Bxg4 Bg7 18. Nf5 Bxb2 19. Re1+ {0-1 (32) Baeta,M (1895)-Delgado Ramirez,N (2613) Cuiaba 2019}) 13... gxf3 {[%emt 0:00:23]} 14. Bxf3 {[%emt 0:00:02]} Bg7 {[%emt 0:00:33]} (14... Qxe5 $2 15. Re1 Bd6 16. Rxe5+ Bxe5 17. Qe2 $18) 15. Re1 {[%emt 0:00:23]} O-O {[%emt 0:00:27]} 16. Re4 {[%emt 0:00:05]} (16. Nd2 {was worth a try.}) 16... Qf5 $19 {[%emt 0:00:08]} 17. Qd3 {[%emt 0:00:59]} c4 {[%emt 0:01:24]} 18. Qd4 {[%emt 0:00:26]} d6 {[%emt 0:00:28]} 19. Bg4 {[%emt 0:01:25]} (19. Nd2 $142) 19... Qg5 {[%emt 0:01:21]} 20. Qxc4 {[%emt 0:02:42]} Bxe5 {[%emt 0:01:21]} 21. f4 {[%emt 0:00:48]} Qxg4 {[%emt 0:00:17]} 22. fxe5 {[%emt 0:00:01]} Qd1+ {[%emt 0:00:14]} 23. Kf2 {[%emt 0:00:07] [#] And now Rg4+ would win.} Qxd5 {[%emt 0:00:41]} 24. Rg4+ {[%emt 0:00:03]} Kh8 {[%emt 0:00:01] ...f5 is the strong threat.} 25. Qf4 {[%emt 0:00:05][%cal Rf4h6]} Qe6 {[%emt 0:00:20] Black is clearly winning.} 26. Nd2 {[%emt 0:00:23]} (26. Rh4 $142 Kh7 27. Qf6 Qxf6+ 28. exf6) 26... dxe5 {[%emt 0:00:23]} 27. Qxb4 {[%emt 0:00:09]} Nc6 {[%emt 0:01:20]} 28. Qxb7 {[%emt 0:00:12]} Qxg4 {[%emt 0:00:02]} 29. Qxc6 {[%emt 0:00:01]} Qf4+ {[%emt 0:00:02]} 30. Ke2 {[%emt 0:00:08]} Rac8 {[%emt 0:00:10]} 31. Qf3 {[%emt 0:00:38]} Qxf3+ {[%emt 0:00:13]} 32. Nxf3 {[%emt 0:00:02][%mdl 4096] Endgame KRR-KRN} Rc2+ {[%emt 0:00:09]} 33. Ke3 {[%emt 0:00:01]} Rxg2 {[%emt 0:00:13]} 34. b4 {[%emt 0:00:02]} Rb2 {[%emt 0:00:16]} 35. a3 {[%emt 0:00:11]} Rb3+ {[%emt 0:00:04]} 36. Ke2 {[%emt 0:00:01]} Rc8 {[%emt 0:00:20]} 37. Ra2 {[%emt 0:00:20]} Rcc3 {[%emt 0:00:16][%csl LRa3,LRf3]} 38. Nh4 {[%emt 0:00:25]} Rh3 {[%emt 0:00:11] Weighted Error Value: White=0.74/Black=0.38} 0-1